Cogmind - Beta 12 @@@ ROGUE MODE // 2024.02.09 @ 00:00:10 Player: %41THX3142 Result: Destroyed by G-67 Veteran with Plasma Rifle Performance ------------- Evolutions (6) 3000 Regions Visited (11) 2200 Robots Destroyed (169) 845 Value Destroyed (6521) 6521 Prototype IDs (11) 220 Alien Tech Used (0) 0 Bonus (4827) 4827 TOTAL SCORE: 17613 Bonus ------- High Alert Combat Kills 152 Follower Combat Kills 1035 Met Warlord at Base 500 MAIN.C Attacked Warlord 500 Warlord Defense Kills 2700 Friendly Fire -60 Cogmind --------- Core Integrity 0/1150 Matter 300/300 Energy 65/100 System Corruption 1% Temperature Cool (63) Movement Core (300) Ox5 Location -4/Warlord Parts ------- > --- POWER (3) -------- (None) > --- PROPULSION (5) --- (None) > --- UTILITY (8) ------ Terrain Scan Processor Armor Integrity Analyzer > --- WEAPON (3) ------- Vortex Driver > --- INVENTORY (5) ---- Compact Battery (200) Vortex Driver (6) Makeshift Sword Peak State ------------ > --- POWER ------------ Angular Momentum Engine Neutrino Core Antimatter Reactor > --- PROPULSION ------- Carbon-fiber Leg Carbon-fiber Leg Carbon-fiber Leg Flexi-carbon Leg Flexi-carbon Leg > --- UTILITY ---------- Advanced Heat Sink Advanced Heat Sink Advanced Gravity Neutralizer Triangulator Armor Integrity Analyzer Improved Phase Shifter Improved Focal Shield Force Field > --- WEAPON ----------- Wave Gun Dispersion Rifle Coil Gun > --- INVENTORY -------- Fission Core Improved Fusion Compressor Long-range Proton Cannon Magnetic Acceleration Cannon Powered Hammer [Rating: 102] Favorites ----------- Power Backup Power III Engine Backup Power III Power Core Fission Core Reactor Antimatter Reactor Propulsion Medium Treads Treads Medium Treads Leg Carbon-fiber Leg Hover Unit Linear Gravjet Utility Large Storage Unit Device Advanced Heat Sink Storage Large Storage Unit Processor Advanced Visual Processing Unit Protection Layered Light Armor Plating Weapon Improved Assault Rifle Energy Gun Wave Gun Energy Cannon Heavy Ion Cannon Ballistic Gun Improved Assault Rifle Ballistic Cannon Advanced Assault Cannon Launcher Grenade Launcher Special Weapon RU-N14's Throwing Claymores v3 Impact Weapon Powered Hammer Slashing Weapon Mining Claw Build | -11 -10 -9 -8 -7 -6 -5 -5 -4 -4 -4 -4 ------- Run | Jun Mat Mat Mat Fac Fac Fac Ext Fac Upp Upp War Slots Evolved 12 | . . 2 2 2 2 2 . 2 . . . Power 2 | . . . . . . 1 . 1 . . . Propulsion 3 | . . . 1 1 1 . . . . . . Utility 6 | . . 2 1 1 1 1 . . . . . Weapon 1 | . . . . . . . . 1 . . . Parts Attached 236 | 7 13 35 15 34 23 25 26 19 8 6 25 Power 36 | 1 1 5 2 3 1 7 4 5 3 . 4 Engine 19 | 1 1 5 1 2 . 4 3 2 . . . Core 14 | . . . 1 1 1 3 1 1 3 . 3 Reactor 3 | . . . . . . . . 2 . . 1 Propulsion 84 | 2 3 14 4 13 12 9 12 3 1 2 9 Treads 26 | . . 12 4 7 . . . . . 2 1 Leg 43 | 2 3 2 . 6 12 2 12 3 1 . . Wheel . | . . . . . . . . . . . . Hover 15 | . . . . . . 7 . . . . 8 Flight . | . . . . . . . . . . . . Utility 56 | 2 4 5 5 6 6 7 8 6 . 2 5 Device 30 | 1 1 2 . 5 2 3 6 6 . 1 3 Storage 6 | 1 2 . . . 2 . . . . . 1 Processor 7 | . 1 . 2 . . 2 1 . . 1 . Hackware . | . . . . . . . . . . . . Protection 13 | . . 3 3 1 2 2 1 . . . 1 Artifact . | . . . . . . . . . . . . Weapon 60 | 2 5 11 4 12 4 2 2 5 4 2 7 Energy Gun 6 | . . . . . 1 . 1 1 1 . 2 Energy Cannon 9 | . . . . 1 1 . . 3 1 . 3 Ballistic Gun 17 | 2 3 5 2 2 . 1 1 1 . . . Ballistic Cannon 13 | . . 2 1 5 1 1 . . 1 2 . Launcher 8 | . 1 4 1 2 . . . . . . . Special Weapon 2 | . . . . . . . . . . . 2 Impact Weapon 4 | . . . . 2 1 . . . 1 . . Slashing Weapon 1 | . 1 . . . . . . . . . . Piercing Weapon . | . . . . . . . . . . . . Special Melee Weapon . | . . . . . . . . . . . . Unidentified Prototypes 10 | . . 2 . 1 . 3 . 1 . . 3 Corrupted Parts 1 | . . . . . . . . . 1 . . System Corruption 14 | . . . . . . . . . 14 . . Parts Lost 108 | . . 2 5 16 25 15 . . 13 9 23 Power 17 | . . . 1 2 2 3 . . 2 3 4 Propulsion 39 | . . . . 7 11 8 . . 4 2 7 Utility 27 | . . 1 1 4 7 2 . . 3 2 7 Weapon 25 | . . 1 3 3 5 2 . . 4 2 5 Highest Loss Streak 17 | . . 1 2 9 10 9 . . 12 5 17 To Critical Strikes . | . . . . . . . . . . . . Average Slot Usage (%) 80 | . 99 99 98 92 77 50 62 98 75 65 54 Engine 6 | . 14 11 7 2 . 3 4 7 2 . 7 Core 2 | . . . . 4 3 4 3 5 9 12 . Treads 10 | . . 21 27 23 . . . . . 1 7 Leg 9 | . 28 . . 4 24 1 20 25 16 8 3 Hover 1 | . . . . . . 18 . . . . . Device 12 | . 8 12 3 6 9 4 21 32 25 23 12 Storage 5 | . 14 11 9 7 7 4 . . . . . Processor 9 | . 5 11 18 15 12 2 . 5 5 8 10 Protection 4 | . . 9 13 11 5 . . 3 . . . Energy Gun 1 | . . . . . . . 4 4 4 . 5 Ballistic Gun 9 | . 27 19 13 8 . 3 4 5 2 . . Ballistic Cannon 2 | . . 2 4 4 4 3 . . 2 4 . Naked Turns 112 | . . . . . . 66 46 . . . . Heaviest Build 76 | 13 29 40 46 65 60 48 51 76 76 55 51 Greatest Support 112 | 20 20 52 84 112 96 54 85 101 101 51 51 Greatest Overweight (x) 14 | 3 1 1 . 14 6 2 6 . 1 1 14 Average Overweight (x) . | . . . . . . . . . . . . Largest Inventory Capacity 15 | 8 15 15 15 15 15 15 5 5 5 5 5 Average Capacity 11 | 7 14 15 15 15 15 14 5 5 5 5 5 Most Carried 15 | 3 15 15 15 15 15 15 5 5 5 4 5 Average Carried 10 | 2 13 14 14 14 13 13 4 4 2 1 4 Final Capacity 15 | 8 15 15 15 15 15 5 5 5 5 5 5 Final Carried 15 | 3 15 15 15 15 11 3 5 5 . 4 3 Class Distribution -------------------- 47% | Scavenger-Mutant 41% | Mutant 5% | Scavenger-Tank Dominant Class ---------------- Mutant | -10/Materials Mutant | -9/Materials Mutant | -8/Materials Scavenger-Mutant | -7/Factory Scavenger-Mutant | -6/Factory Mutant | -5/Factory Scavenger-Mutant | -5/Extension Scavenger-Tank | -4/Factory Scavenger-Mutant | -4/Upper Caves Scavenger-Mutant | -4/Upper Caves Scavenger-Mutant | -4/Warlord Resources | -11 -10 -9 -8 -7 -6 -5 -5 -4 -4 -4 -4 ----------- Run | Jun Mat Mat Mat Fac Fac Fac Ext Fac Upp Upp War Matter Collected 5676 | 165 449 1046 624 800 482 413 630 87 188 305 487 Remotely . | . . . . . . . . . . . . Salvage Created 6061 | 66 524 1043 811 928 579 589 631 87 267 36 500 Parts 327 | 9 45 93 30 48 25 20 23 4 11 . 19 Haulers Intercepted 10 | . 2 5 1 . 1 1 . . . . . Recyclers Shooed 3 | 1 . . 2 . . . . . . . . Parts Field Recycled . | . . . . . . . . . . . . Retrieved Matter . | . . . . . . . . . . . . Parts Self-Destructed 17 | . . . . . . . . . 17 . . Prevented 3 | . . . . . . . . . 3 . . Kills | -11 -10 -9 -8 -7 -6 -5 -5 -4 -4 -4 -4 ------- Run | Jun Mat Mat Mat Fac Fac Fac Ext Fac Upp Upp War Combat Hostiles Destroyed 126 | . 13 25 12 19 13 7 11 1 6 2 17 Melee 2 | . . . . . 1 . . . 1 . . Guns 60 | . 10 14 8 6 . 3 11 1 4 . 3 Cannons 38 | . . 3 4 9 11 3 . . . 2 6 AOE 25 | . 3 8 . 4 1 1 . . . . 8 Classes Destroyed 18 | 1 6 1 4 3 . . 1 . . . 2 Worker 7 | . 2 4 . . . 1 . . . . . Builder 6 | . 1 3 . 1 1 . . . . . . Tunneler 5 | 4 . . . . . 1 . . . . . Hauler 10 | . 2 5 1 . 1 1 . . . . . Recycler 6 | . . . 2 2 . 2 . . . . . Watcher 9 | . 1 3 2 2 1 . . . . . . Swarmer 25 | . 6 10 . . 4 . 2 . 3 . . Grunt 52 | . 7 9 7 7 4 5 4 . 3 . 6 Brawler 2 | . . . 1 . . . . . . . 1 Duelist 2 | . . . 1 1 . . . . . . . Sentry 14 | . . 6 1 1 3 . 2 1 . . . Specialist 8 | . . . 2 4 1 . . . . . 1 Hunter 2 | . . . . 1 . . 1 . . . . Programmer 15 | . . . . 4 1 2 . . . 2 6 Heavy 1 | . . . . 1 . . . . . . . Behemoth 1 | . . . . . . . 1 . . . . Striker 2 | . . . . . . . . . . . 2 Executioner 1 | . . . . . . . . . . . 1 Decomposer 1 | . . . . . . . . . . 1 . Butcher 1 | . . . . . . . 1 . . . . Best Kill Streak 10 | 4 6 10 4 5 5 3 3 1 2 3 7 Combat Bots Only 7 | . 3 6 3 4 5 3 3 1 2 2 7 Max Kills in Single Turn 4 | 1 3 3 2 2 2 1 1 1 1 1 4 Gunslinging 1 | . 1 . . . . . . . . . . Exploded 3 | . 2 2 . 2 1 1 . . . . 3 Melee 1 | . . . . . 1 . . . 1 . . Uniques/NPCs Destroyed . | . . . . . . . . . . . . Combat | -11 -10 -9 -8 -7 -6 -5 -5 -4 -4 -4 -4 -------- Run | Jun Mat Mat Mat Fac Fac Fac Ext Fac Upp Upp War Damage Taken 17220 | . 387 1297 1105 2754 3755 2580 410 119 1465 803 2545 Core 3448 | . 66 223 69 329 808 743 59 40 271 85 755 Absorbed by Shields 869 | . . . . 296 . . 112 . 461 . . Regen/Repaired (Parts) 318 | . 71 63 . . 38 . . . . . 146 Core Remaining (%) 54 | 100 73 44 87 53 4 . 19 . . . . Volleys Fired 444 | 8 36 88 46 71 49 40 50 3 19 14 20 Largest 3 | 2 2 2 2 2 2 2 2 3 3 2 3 Hottest 199 | 40 50 62 64 113 128 76 111 192 199 106 190 Shots Fired 825 | 16 71 167 91 131 90 74 89 9 38 16 33 Gun 532 | 16 69 131 68 60 . 40 89 6 31 . 22 Cannon 267 | . . 22 22 66 90 34 . 3 7 16 7 Launcher 22 | . 2 14 1 5 . . . . . . . Special 4 | . . . . . . . . . . . 4 Kinetic 637 | 16 69 153 90 104 49 74 49 3 14 16 . Thermal 138 | . . . . 22 41 . 40 3 23 . 9 Explosive 26 | . 2 14 1 5 . . . . . . 4 Electromagnetic 4 | . . . . . . . . 3 1 . . Entropic 20 | . . . . . . . . . . . 20 Robot Hit Streak 19 | 5 9 19 8 13 8 7 9 7 4 6 6 Robot Miss Streak 9 | 1 3 4 3 5 5 9 5 . 3 6 1 Penetration Max 2 | . . . . . . . 1 . . . 2 Secondary Targets 3 | . 1 1 . . . . 1 . . . . Max Gunslinging Chain 1 | . 1 1 . . . . 1 . . . . Shots Hit Robots 545 | 12 50 106 59 91 58 52 51 7 23 15 21 Core Hits 331 | 4 27 62 34 48 25 54 22 3 11 12 29 Critical Kills 4 | . . . 2 . . . . . 2 . . Critical Parts Destroyed 8 | 2 . . . 1 1 . . . 2 . 2 Critical Strikes 26 | 2 . 1 3 3 2 3 2 . 4 . 6 Burn 2 | . . . . . . . 2 . . . . Destroy 7 | 2 . . 2 1 . . . . 2 . . Blast 8 | . . 1 1 2 1 3 . . . . . Smash 3 | . . . . . 1 . . . 2 . . Detonate 2 | . . . . . . . . . . . 2 Sunder 4 | . . . . . . . . . . . 4 Melee Attacks 34 | . 2 . . 8 19 . . . 5 . . Impact 32 | . . . . 8 19 . . . 5 . . Slashing 2 | . 2 . . . . . . . . . . Piercing . | . . . . . . . . . . . . Sneak Attacks . | . . . . . . . . . . . . Combat Hostiles . | . . . . . . . . . . . . Follow-up Attacks . | . . . . . . . . . . . . Damage Inflicted 17115 | 157 882 2368 1133 2753 2108 1409 1098 182 657 424 3944 Guns 6675 | 157 686 1307 777 858 . 570 1095 123 430 . 672 Cannons 5057 | . . 318 337 1248 1450 580 . 59 94 424 547 Explosions 4584 | . 194 713 13 609 264 235 . . . . 2556 Melee 534 | . . . . 35 366 . . . 133 . . Ramming 96 | . 2 30 6 3 28 24 3 . . . . Kinetic 8508 | 157 686 1625 1114 1749 933 1150 465 48 157 424 . Thermal 2911 | . . . . 357 781 . 630 75 367 . 701 Explosive 3690 | . 194 713 13 609 . 235 . . . . 1926 Electromagnetic 59 | . . . . . . . . 59 . . . Impact 534 | . . . . 35 366 . . . 133 . . Slashing 169 | . . . . . . . . . . . 169 Piercing . | . . . . . . . . . . . . Entropic 1148 | . . . . . . . . . . . 1148 Highest Corruption 18 | . . . . 3 18 5 5 . 14 14 14 Average Corruption 5 | . . . . 1 8 4 4 . 14 14 2 Corruption Purged 5 | . . . . . . . 5 . . . . Corruption Blocked 5 | . . . . . . 5 . . . . . Effects 86 | . . . . 15 8 1 26 . 15 16 5 Message Errors 22 | . . . . 3 1 1 8 . 3 5 1 Matter Fused 14 | . . . . . 1 . 5 . 4 2 2 Heat Flow Errors 13 | . . . . 4 2 . 1 . 3 3 . Energy Discharges 14 | . . . . 3 1 . 2 . 3 3 2 Parts Rejected 1 | . . . . . 1 . . . . . . Parts Fused 2 | . . . . . . . 1 . . 1 . Data Loss (minor) 11 | . . . . 3 1 . 4 . 1 2 . Data Loss (major) 5 | . . . . 1 . . 4 . . . . Misfires 2 | . . . . 1 1 . . . . . . Alerts 1 | . . . . . . . . . 1 . . Weapon Failures 1 | . . . . . . . 1 . . . . Overload Shots . | . . . . . . . . . . . . Overflow Damage 657 | . . 27 . 53 300 28 . . 30 1 218 Projectiles 151 | . . . . 53 24 . . . . 1 73 Explosions 391 | . . 27 . . 191 28 . . . . 145 Melee 115 | . . . . . 85 . . . 30 . . Knockbacks 56 | . . 3 3 14 14 9 . . 2 11 . Impact 5 | . . . . . 4 . . . 1 . . Kinetic 51 | . . 3 3 14 10 9 . . 1 11 . Secondary . | . . . . . . . . . . . . Self-Inflicted Damage 220 | . . 40 . . 101 5 . . . . 74 Shots 6 | . . 4 . . 1 . . . . . 1 Rammed 26 | . . 7 2 1 12 4 . . . . . Targets Rammed 39 | . 1 7 2 1 18 8 2 . . . . Kicked 13 | . 1 . . . 6 4 2 . . . . Crushed . | . . . . . . . . . . . . Highest Temperature 456 | . 20 36 212 374 375 456 130 82 201 230 171 Average Temperature 82 | . 7 8 51 94 133 102 35 41 74 114 60 Received Heat Transfer 3853 | . 162 354 477 801 480 525 153 45 393 57 406 Effects 9 | . . . . 1 4 4 . . . . . Shutdowns 3 | . . . . 1 . 2 . . . . . Energy Bleed 4 | . . . . . 2 2 . . . . . Interference 2 | . . . . . 2 . . . . . . Siege Activations . | . . . . . . . . . . . . Robots Corrupted . | . . . . . . . . . . . . Combat Hostiles . | . . . . . . . . . . . . Parts Fried 3 | . . . . . . . 1 . 2 . . Impact Corruptions 5 | . . . . . 4 . . . 1 . . Robots Melted . | . . . . . . . . . . . . Combat Hostiles . | . . . . . . . . . . . . Parts Melted 6 | . . . . 1 1 . 2 1 . . 1 Heat Transferred 3855 | . . . . 481 1124 . 1110 111 518 . 511 Parts Sabotaged . | . . . . . . . . . . . . Parts Stolen . | . . . . . . . . . . . . Parts Stripped . | . . . . . . . . . . . . Power Chain Reactions . | . . . . . . . . . . . . Missiles Intercepted . | . . . . . . . . . . . . Alert | -11 -10 -9 -8 -7 -6 -5 -5 -4 -4 -4 -4 ------- Run | Jun Mat Mat Mat Fac Fac Fac Ext Fac Upp Upp War Peak Influence 654 | 20 159 477 368 181 354 355 654 310 . . . Initial 265 | . 13 33 185 140 70 83 120 265 . . . Average 180 | 5 66 204 259 77 175 137 447 289 . . . Maximum Alert Level 2 | . . 2 1 . 1 1 2 1 . . . Low Security (%) 65 | 100 100 58 24 100 59 74 5 . . . . Level 1 21 | . . 24 75 . 40 25 13 100 . . . Level 2 13 | . . 17 . . . . 81 . . . . Level 3 . | . . . . . . . . . . . . Level 4 . | . . . . . . . . . . . . Level 5 . | . . . . . . . . . . . . High Security . | . . . . . . . . . . . . Max Security . | . . . . . . . . . . . . Squads Dispatched 35 | . 3 2 3 9 5 6 7 . . . . Investigation 12 | . 2 1 . 2 1 1 5 . . . . Extermination 6 | . . . . 4 1 1 . . . . . Reinforcement 16 | . 1 1 3 3 2 4 2 . . . . Assault . | . . . . . . . . . . . . Garrison 1 | . . . . . 1 . . . . . . Intercept . | . . . . . . . . . . . . Searches Triggered . | . . . . . . . . . . . . Construction Impeded 4 | . . . . 1 . 2 1 . . . . Haulers Reinforced 1 | . . . . . . 1 . . . . . Active Scanning Responses . | . . . . . . . . . . . . Cargo Convoy Interrupts 2 | . . . . 1 . 1 . . . . . Stealth | -11 -10 -9 -8 -7 -6 -5 -5 -4 -4 -4 -4 --------- Run | Jun Mat Mat Mat Fac Fac Fac Ext Fac Upp Upp War Distress Signals 12 | . 3 1 3 1 1 . 3 . . . . Communications Jammed . | . . . . . . . . . . . . Distress Signals . | . . . . . . . . . . . . Times Spotted 269 | . 22 42 25 26 31 36 41 1 13 7 25 Peak Tracking Total 20 | . 4 9 7 4 5 20 5 1 6 5 8 Tactical Retreats 21 | . 1 1 1 . 7 4 2 . 3 . 2 Traps | -11 -10 -9 -8 -7 -6 -5 -5 -4 -4 -4 -4 ------- Run | Jun Mat Mat Mat Fac Fac Fac Ext Fac Upp Upp War Traps Triggered 10 | . 1 . . 2 . 3 1 3 . . . Indirectly . | . . . . . . . . . . . . Trap Hack Attempts . | . . . . . . . . . . . . Triggered . | . . . . . . . . . . . . Disarmed 17 | . 6 6 . 5 . . . . . . . Reprogrammed . | . . . . . . . . . . . . Reused . | . . . . . . . . . . . . Traps Extracted . | . . . . . . . . . . . . Installed . | . . . . . . . . . . . . Triggered 39 | . . . . 3 . . . . 2 . 34 Machines | -11 -10 -9 -8 -7 -6 -5 -5 -4 -4 -4 -4 ---------- Run | Jun Mat Mat Mat Fac Fac Fac Ext Fac Upp Upp War Machines Disabled 20 | . . 2 . 1 3 6 2 . . . 6 Max in Single Turn 4 | . . 1 . 1 2 4 1 . . . 4 Machines Repaired . | . . . . . . . . . . . . Machines Sabotaged . | . . . . . . . . . . . . Overloaded Fab Kills . | . . . . . . . . . . . . Hacking | -11 -10 -9 -8 -7 -6 -5 -5 -4 -4 -4 -4 --------- Run | Jun Mat Mat Mat Fac Fac Fac Ext Fac Upp Upp War Machines Accessed 59 | . 10 12 1 9 2 5 16 1 1 . 2 Terminals 44 | . 7 8 1 6 1 3 16 1 1 . . Fabricators . | . . . . . . . . . . . . Repair Stations 5 | . 1 1 . 1 1 1 . . . . . Recycling Units 6 | . 2 2 . 1 . 1 . . . . . Scanalyzers 1 | . . 1 . . . . . . . . . Garrison Access 1 | . . . . 1 . . . . . . . Total Hacks 150 | . 37 29 2 17 9 11 37 2 3 . 3 Successful 62 | . 18 13 1 5 5 4 10 . 3 . 3 Failed 88 | . 19 16 1 12 4 7 27 2 . . . Catastrophic 31 | . 4 6 . 3 . 4 12 2 . . . Database Lockouts . | . . . . . . . . . . . . Manual 65 | . 17 10 2 9 5 5 13 2 . . 2 Terminals 119 | . 29 21 2 11 6 8 37 2 3 . . Fabricators . | . . . . . . . . . . . . Repair Stations 16 | . 4 5 . 2 3 2 . . . . . Recycling Units 9 | . 4 2 . 2 . 1 . . . . . Scanalyzers 1 | . . 1 . . . . . . . . . Garrison Access 2 | . . . . 2 . . . . . . . Terminal Hacks 37 | . 6 6 1 3 2 3 10 . 3 . 3 Record 6 | . . . . . . 1 . . 3 . 2 Open Door 9 | . . . . . . . 8 . . . 1 Level Access Points 1 | . . . . . 1 . . . . . . Branch Access Points 3 | . 1 1 . . . 1 . . . . . Emergency Access Points 3 | . 1 1 . . 1 . . . . . . Terminal Index 1 | . 1 . . . . . . . . . . Alert Level 2 | . . 1 . . . . 1 . . . . Unreport Threat 1 | . . . . . . . 1 . . . . Locate Traps 4 | . 1 1 . 2 . . . . . . . Disarm Traps 3 | . 1 1 . 1 . . . . . . . Recall Reinforcements 1 | . . . 1 . . . . . . . . Zone Layout 3 | . 1 1 . . . 1 . . . . . Fabricator Hacks . | . . . . . . . . . . . . Repair Station Hacks 12 | . 4 4 . 1 3 . . . . . . Scan Component 7 | . 2 2 . 1 2 . . . . . . Repair 5 | . 2 2 . . 1 . . . . . . Recycling Unit Hacks 6 | . 3 2 . . . 1 . . . . . Report Inventory 5 | . 2 2 . . . 1 . . . . . Retrieve Components 1 | . 1 . . . . . . . . . . Scanalyzer 1 | . . 1 . . . . . . . . . Insert Component 1 | . . 1 . . . . . . . . . Garrison Access Hacks . | . . . . . . . . . . . . Unauthorized Hacks 6 | . 5 . . 1 . . . . . . . Terminals 6 | . 5 . . 1 . . . . . . . Assimilate 3 | . 2 . . 1 . . . . . . . Botnet 2 | . 2 . . . . . . . . . . Detonate 1 | . 1 . . . . . . . . . . Fabricators . | . . . . . . . . . . . . Repair Stations . | . . . . . . . . . . . . Recycling Units . | . . . . . . . . . . . . Scanalyzers . | . . . . . . . . . . . . Garrison Access . | . . . . . . . . . . . . Data Cores Recovered . | . . . . . . . . . . . . Used . | . . . . . . . . . . . . Hacking Detections 47 | . 9 9 1 9 2 4 12 1 . . . Full Trace Events 11 | . 2 1 . 1 1 1 5 . . . . Feedback Events 1 | . . . . . . 1 . . . . . Corruption 1 | . . . . . . 1 . . . . . Feedback Blocked . | . . . . . . . . . . . . Robot Schematics Acquired . | . . . . . . . . . . . . Robots Built . | . . . . . . . . . . . . Authchips . | . . . . . . . . . . . . Time . | . . . . . . . . . . . . Total Robot Build Rating . | . . . . . . . . . . . . Part Schematics Acquired . | . . . . . . . . . . . . Parts Built . | . . . . . . . . . . . . Authchips . | . . . . . . . . . . . . Time . | . . . . . . . . . . . . Total Part Build Rating . | . . . . . . . . . . . . Parts Repaired 5 | . 2 2 . . 1 . . . . . . Time 130 | . 52 52 . . 26 . . . . . . Parts Recycled . | . . . . . . . . . . . . Recycled Matter . | . . . . . . . . . . . . Retrieved Matter . | . . . . . . . . . . . . Retrieved Components 1 | . 1 . . . . . . . . . . Parts Scanalyzed . | . . . . . . . . . . . . Part Schematics Acquired . | . . . . . . . . . . . . Parts Damaged . | . . . . . . . . . . . . Bothacking | -11 -10 -9 -8 -7 -6 -5 -5 -4 -4 -4 -4 ------------ Run | Jun Mat Mat Mat Fac Fac Fac Ext Fac Upp Upp War Used RIF Installer . | . . . . . . . . . . . . Robots Hacked . | . . . . . . . . . . . . Non-combat . | . . . . . . . . . . . . Combat . | . . . . . . . . . . . . Robot Hacks Applied . | . . . . . . . . . . . . Relay Couplers Released . | . . . . . . . . . . . . Fabnet Peak Effective % . | . . . . . . . . . . . . Robots Rewired . | . . . . . . . . . . . . Allies Hacked . | . . . . . . . . . . . . Hacks Repelled . | . . . . . . . . . . . . Allies | -11 -10 -9 -8 -7 -6 -5 -5 -4 -4 -4 -4 -------- Run | Jun Mat Mat Mat Fac Fac Fac Ext Fac Upp Upp War Total Allies 10 | . . . . . . . 10 . . . . Largest Group 5 | . . . . . . . 5 . . . . Highest-Rated Group 292 | . . . . . . . 292 . . . . Highest-Rated Ally 159 | . . . . . . . 159 . . . . Total Orders . | . . . . . . . . . . . . Ally Attacks 150 | . . . . . . . 150 . . . . Total Damage 3976 | . . . . . . . 3976 . . . . Kills 28 | . . . . . . . 28 . . . . Allies Corrupted 1 | . . . . . . . 1 . . . . Allies Melted . | . . . . . . . . . . . . Intel | -11 -10 -9 -8 -7 -6 -5 -5 -4 -4 -4 -4 ------- Run | Jun Mat Mat Mat Fac Fac Fac Ext Fac Upp Upp War Robot Analysis Total . | . . . . . . . . . . . . Derelict Logs Recovered 2 | . . . . . . . . . 1 1 . Drone Launches . | . . . . . . . . . . . . Drone Recoveries . | . . . . . . . . . . . . Exploration | -11 -10 -9 -8 -7 -6 -5 -5 -4 -4 -4 -4 ------------- Run | Jun Mat Mat Mat Fac Fac Fac Ext Fac Upp Upp War Turns Passed 13555 | 91 1399 2282 642 2340 870 1115 1224 331 828 372 2061 Spaces Moved 7342 | 42 668 1132 289 1175 399 818 773 227 625 268 926 Core 421 | 19 . . . 11 3 130 165 . . . 93 Treads 2478 | . . 1099 289 1032 . . . . . 5 53 Legs 3873 | 23 668 33 . 132 396 172 608 227 625 263 726 Wheels . | . . . . . . . . . . . . Hover 570 | . . . . . . 516 . . . . 54 Flight . | . . . . . . . . . . . . Fastest Speed 24 | 50 120 160 160 160 120 24 50 120 120 120 44 Average Speed 143 | 128 177 161 160 171 139 92 127 120 120 121 147 Slowest Speed 750 | 200 190 240 160 750 350 210 350 120 190 190 750 Overloaded Moves . | . . . . . . . . . . . . Propulsion Burnouts . | . . . . . . . . . . . . Robots Hopped . | . . . . . . . . . . . . Cave-ins Triggered . | . . . . . . . . . . . . Exploration Rate (%) 46 | 3 98 82 24 29 13 20 86 5 70 37 88 Regions Visited 11 Branch Regions 4 Pre-discovered Areas 1 | . . . . . . . . . 1 . . Known Exits Taken 7 | . 1 1 1 1 1 1 . . 1 . . Unknown Exits Taken 4 | 1 . . . . . . 1 1 . 1 . Scrap Searched 1 | . . . . . . . . . . 1 . Spaces Dug 15 | . 1 6 . 5 2 1 . . . . . Terrain Destroyed 302 | . 11 98 6 28 37 66 12 . 4 1 39 Melee 8 | . 1 . . 5 2 . . . . . . Projectile 39 | . . 1 1 7 6 5 11 . 4 1 3 AOE 254 | . 10 97 5 16 29 61 . . . . 36 Terrain Rammed . | . . . . . . . . . . . . Walls Destroyed . | . . . . . . . . . . . . Machines Disabled . | . . . . . . . . . . . . Actions | -11 -10 -9 -8 -7 -6 -5 -5 -4 -4 -4 -4 --------- Run | Jun Mat Mat Mat Fac Fac Fac Ext Fac Upp Upp War Total 9469 | 59 808 1435 389 1364 562 1105 927 277 656 296 1591 Wait 1149 | . 65 118 18 40 41 187 53 17 . 4 606 Move 7331 | 41 667 1131 288 1174 398 817 772 226 624 267 926 Hop . | . . . . . . . . . . . . Pick Up 107 | 3 15 21 9 20 7 12 9 4 . 4 3 Fast Attach 107 | 7 2 8 1 12 9 17 15 14 2 5 15 Attach 56 | . . 5 5 12 9 7 3 2 5 1 7 Detach 9 | . . . . . . 4 . . . 1 4 Swap 74 | . 11 22 9 10 5 2 8 3 1 . 3 Drop 117 | . 9 35 11 16 7 11 13 8 . . 7 Fire 444 | 8 36 88 46 71 49 40 50 3 19 14 20 Melee 34 | . 2 . . 8 19 . . . 5 . . Ram 16 | . . . . . 12 4 . . . . . Kick 13 | . 1 . . . 6 4 2 . . . . Crush 10 | . . 7 2 1 . . . . . . . Escape Stasis 1 | . . . . . . . 1 . . . . Rewire 1 | . . . . . . . 1 . . . . Trap . | . . . . . . . . . . . . Miscellaneous . | . . . . . . . . . . . . Route ------- -11/Junkyard -10/Materials (discovered 5 exits: *Mat x3 / *Min x2) -9/Materials (discovered 4 exits: *Mat / *Min / *Sto x2) -8/Materials -7/Factory -6/Factory (discovered 4 exits: *Fac x4) -5/Factory (discovered 4 exits: Upp x2 / *Ext x2) -5/Extension (discovered 2 exits: *Fac / [*Cet]) -4/Factory -4/Upper Caves -4/Upper Caves -4/Warlord History --------- Turn | Location | Event 36 | -11/Junkyard | Discovered new exit (range 14) 92 | -11/Junkyard | Entered Materials 206 | -10/Materials | Identified exit to Mines 255 | -10/Materials | Discovered new exit (range 13) 300 | -10/Materials | Build established: Mutant 467 | -10/Materials | Discovered new exit (range 15) 768 | -10/Materials | Repaired Seismic Detector 795 | -10/Materials | Repaired Assault Rifle 952 | -10/Materials | Discovered new exit (range 9) 968 | -10/Materials | Identified exit to Materials 1433 | -10/Materials | Build established: Scavenger-Mutant 1491 | -10/Materials | Entered another Materials area 1491 | -9/Materials | Evolved 2 slots: Utility x2 1689 | -9/Materials | Repaired Aluminum Leg 1716 | -9/Materials | Repaired Assault Rifle 2117 | -9/Materials | Discovered new exit (range 11) 2185 | -9/Materials | Build established: Mutant 2540 | -9/Materials | Discovered new exit (range 3) 2543 | -9/Materials | Identified exit to Storage 2826 | -9/Materials | Identified exit to Mines 3376 | -9/Materials | Core integrity fell below 50% 3493 | -9/Materials | Discovered new exit (range 16) 3536 | -9/Materials | Identified exit to Materials 3773 | -9/Materials | Entered another Materials area 3773 | -8/Materials | Evolved 2 slots: Propulsion x1, Utility x1 4407 | -8/Materials | Discovered new exit (range 6) 4414 | -8/Materials | Identified exit to Factory 4415 | -8/Materials | Entered Factory 4415 | -7/Factory | Evolved 2 slots: Propulsion x1, Utility x1 4665 | -7/Factory | Build established: Scavenger-Mutant 5160 | -7/Factory | Cargo convoy interrupted 5865 | -7/Factory | Lost 5 parts (1p2n1u1w) 6087 | -7/Factory | Build established: Mutant 6263 | -7/Factory | Discovered new exit (range 9) 6348 | -7/Factory | Lost 9 parts (1p4n3u1w) 6586 | -7/Factory | Identified exit to Factory 6755 | -7/Factory | Entered another Factory area 6755 | -6/Factory | Evolved 2 slots: Propulsion x1, Utility x1 6777 | -6/Factory | Build established: Scavenger-Mutant 6936 | -6/Factory | Identified exit to Factory 7111 | -6/Factory | Repaired Aluminum Leg 7182 | -6/Factory | Garrison activated, responded to threat 7256 | -6/Factory | Lost 6 parts (1p3n1u1w) 7303 | -6/Factory | Spotted B-75 Beast 7399 | -6/Factory | Lost 5 parts (1p1n2u1w) 7480 | -6/Factory | Lost 3 parts (2n1w) 7549 | -6/Factory | System corruption reached 10% 7573 | -6/Factory | Core integrity fell below 50% 7615 | -6/Factory | Core integrity fell below 20% 7625 | -6/Factory | Entered another Factory area 7625 | -5/Factory | Evolved 2 slots: Power x1, Utility x1 7654 | -5/Factory | Lost 10 parts (4n4u2w) 7663 | -5/Factory | Build established: Mutant 8499 | -5/Factory | Lost 3 parts (3n) 8521 | -5/Factory | Identified exit to Upper Caves 8521 | -5/Factory | Identified exit to Extension 8649 | -5/Factory | Cargo convoy interrupted 8674 | -5/Factory | Released all parts (4) 8684 | -5/Factory | Spotted B-75 Beast 8695 | -5/Factory | Core integrity fell below 50% 8704 | -5/Factory | Lost 9 parts (2p3n2u2w) 8740 | -5/Factory | Entered Extension 8771 | -5/Extension | Rescued A7 8873 | -5/Extension | Rescued a captive Derelict 9038 | -5/Extension | Rescued a captive Derelict 9148 | -5/Extension | Rescued a captive Derelict 9149 | -5/Extension | Rescued a captive Derelict 9261 | -5/Extension | Spotted B-75 Beast 9274 | -5/Extension | Spotted B-75 Beast 9286 | -5/Extension | Allies destroyed B-75 Beast 9298 | -5/Extension | Destroyed B-75 Beast 9419 | -5/Extension | Build established: Scavenger-Mutant 9576 | -5/Extension | Rescued a captive Derelict 9789 | -5/Extension | Rescued a captive Derelict 9800 | -5/Extension | Rescued a captive Derelict 9840 | -5/Extension | Core integrity fell below 20% 9866 | -5/Extension | Extracted ID and sensor layout for unrecognized location from A7's data core 9877 | -5/Extension | Rescued a captive Derelict 9878 | -5/Extension | Rescued a captive Derelict 9943 | -5/Extension | Discovered new exit (range 10) 9944 | -5/Extension | Discovered new exit (range 6) 9964 | -5/Extension | Entered Factory 9964 | -4/Factory | Evolved 2 slots: Power x1, Weapon x1 10097 | -4/Factory | Discovered new exit (range 5) 10286 | -4/Factory | Build established: Scavenger-Tank 10295 | -4/Factory | Entered Upper Caves 10367 | -4/Upper Caves | Spotted B-86 Titan 10607 | -4/Upper Caves | Learned location of Armory (-3) 10607 | -4/Upper Caves | Learned 8 Research zone layouts 10607 | -4/Upper Caves | Learned Armory security intel 10614 | -4/Upper Caves | Attracted the attention of an 0b10 base 10735 | -4/Upper Caves | Lost 12 parts (2p4n2u4w) 10741 | -4/Upper Caves | System corruption reached 10% 10940 | -4/Upper Caves | Build established: Scavenger-Mutant 11012 | -4/Upper Caves | Identified exit to Upper Caves 11123 | -4/Upper Caves | Entered another Upper Caves area 11409 | -4/Upper Caves | Lost 5 parts (1p2n1u1w) 11434 | -4/Upper Caves | Spotted B-86 Titan 11480 | -4/Upper Caves | Discovered new exit (range 12) 11492 | -4/Upper Caves | Attracted the attention of an 0b10 base 11495 | -4/Upper Caves | Entered Warlord 11558 | -4/Warlord | System corruption cleaned by Quarantine Array 11611 | -4/Warlord | Found Prototype Special Weapon 11611 | -4/Warlord | Identified RU-N14's Throwing Claymores v3 12159 | -4/Warlord | Received a Watcher feed algorithm from an ecstatic Tinkerer 12310 | -4/Warlord | Met Warlord 12335 | -4/Warlord | Warlord's base attacked by MAIN.C 12685 | -4/Warlord | Warlord forces counterattacked 13010 | -4/Warlord | Warlord base infiltrated, sounded retreat 13011 | -4/Warlord | Enhanced Grunt warped into view 13011 | -4/Warlord | Enhanced Grunt warped into view 13011 | -4/Warlord | Enhanced Grunt warped into view 13011 | -4/Warlord | Enhanced Demolisher warped into view 13011 | -4/Warlord | Enhanced Demolisher warped into view 13011 | -4/Warlord | Enhanced Demolisher warped into view 13117 | -4/Warlord | Spotted Striker 13141 | -4/Warlord | Core integrity fell below 50% 13141 | -4/Warlord | Destroyed Striker 13184 | -4/Warlord | Found Prototype Energy Gun 13184 | -4/Warlord | Identified Vortex Rail 13187 | -4/Warlord | Found Vortex Rail 13198 | -4/Warlord | Found Prototype Energy Cannon 13198 | -4/Warlord | Identified Vortex Driver 13199 | -4/Warlord | Lost 17 parts (3p5n6u3w) 13205 | -4/Warlord | Found Vortex Driver 13489 | -4/Warlord | Spotted Striker 13493 | -4/Warlord | Build established: Gunner 13503 | -4/Warlord | Spotted Executioner 13503 | -4/Warlord | Destroyed Striker 13504 | -4/Warlord | Core integrity fell below 20% 13507 | -4/Warlord | Destroyed Executioner 13531 | -4/Warlord | Destroyed 7 combat bots 13545 | -4/Warlord | Spotted Striker 13556 | -4/Warlord | Destroyed by G-67 Veteran with Plasma Rifle Last Messages --------------- 13536_ Acquired Imp. Antigrav System. 13539_ Acquired 26 matter. 13545_ Vortex penetrates B-74 Champion. 13549_ Vortex penetrates D-63 Destroyer. 13549_ Imp. Antigrav System destroyed. 13552_ Vortex penetrates B-74 Champion. 13552_ B-74 Champion suffers critical hit (Sunder). 13552_ B-74 Champion Powered Hammer ripped off. 13552_ B-74 Champion destroyed. 13552_ Vortex Rail destroyed. 13552_ Mak. Ablative Armor destroyed. 13553_ Imp. Antigrav System destroyed. 13554_ Particle Reactor destroyed. 13555_ Vortex penetrates G-73 Enforcer. 13555_ G-73 Enforcer suffers critical hit (Sunder). 13555_ G-73 Enforcer Hvy. Laser ripped off. 13555_ G-73 Enforcer Adv. Heat Sink ripped off. 13555_ G-73 Enforcer destroyed. 13555_ Machine disabled. [Achievement: 10k Club] Map ----- +----------------------------------------------------+ | ?????????????????????#" "## | | ?????????????????????#" "## """ | | ?????????????????????#" "## """ | | ???????????????##"""##" "## """ | | ???????????????#X #" "## """ | | ???????????????# "## """ | | ???????????????# "## | | ?????#########?# "## | | ?????#"""""""#?# "## | | ?????#"""""""#?##########+++##### | | ?????#"" " ""#??????????# #??# | | ?????#""" """#????????### #### | | ?????#"" ""#????????#" | | ???????# #??????????### | | ???????###+############## | | ?????????# # ## | | ?????????# K ^ | | ?????????## [[ | | ??????????# g""" """ """ | | ??????????# """ """ """ | | ????????### """ """ """ | | ????????# | | ??####### | | ??# [ # | | ?#"" "" i | | ?# @ d | | ?#" /% | | ?##""" d | | ??##""# # | | ???###;;; ##### | | ?????##### ################ | | ?????????;# ##""" """"#??#^ | | ????????### ##"""" """"#??#^ | | ??????????# ##"""" """""#??# | | ??????????# ##"""" " "#??# = | | ??????????# ##" X "#??#% | | ??????????# ##" "#??# | | ??????????# ##" ""#??# % ! | | ??????????# ## ""#??# = = | | ??????????# ## ""#??#]% !% | | ??????????# ## ""#??#*= # ] | | ??????????# ^ #" ""#??# # | | ??????????# " """""""#??#!! # | | ??????????# ^ " """"""""#??#%= ## | | ??????????#"###############??*=! ## | | ??????????##?????????????????"! + | | ????????????#####???????####"" ## | | ????????????# #???????# ### | | ????????????# ######### ######+##### | | ????????????# ^ ## # | +----------------------------------------------------+ Best States ------------- Heat Dissipation 81 Energy Generation 62 Energy Capacity 740 Matter Stores 450 Matter Capacity 450 Sight Range 22 Robot Scan Range 16 Terrain Scan Density 85 Additional Mass Support 16 Corruption Block 15 Armor Coverage 600 Resistance: KI 25 Resistance: EX 50 Phase Shifting 10 Evasion (%) 65 Armor Integrity Analysis 30 Recoil Reduction 4 Matter Filtering 30 Item Schematics ----------------- None Robot Schematics ------------------ None Fabricated ------------ Nothing Alien Tech Used ----------------- None Achievements -------------- 10k Club A Powerful Ally? Batter Up Can't Catch Me Hunted Prison Break Prolific Hacker Respectable Loadout Challenges ------------ None Game ------ Seed SuspensionZioniteFilter Manual? 0 Play Time 02:59:13 Cumulative 38.4 hours Start 2024.02.08 @ 16:57:32 End 2024.02.09 @ 00:00:10 Sessions 5 Manual Loads 0 Difficulty Rogue Special Mode None Game No. 26 Rogue 26 Adventurer 0 Explorer 0 Win Type - Total 0 Types 0/0/0/0/0/0/0/0/0 Lore% 21 Gallery% 28 Achievement% 22 Wizard Run 0 Options --------- ASCII 0 Keyboard 1 Movement Vi Keybinds 0 Fullscreen 1 Font 18/Terminus Map View 76x50 Tactical HUD 1 Map Filters NONE Filters NONE Steam 1 RUN: 0f344fdd-6e29-4bc7-8b00-bd26a2a9f087